[Event "Live Chess"]
[Site "Chess.com"]
[Date "2023.05.21"]
[Round "-"]
[White "1600x"]
[Black "Jo1ts"]
[Result "1-0"]
[WhiteElo "1835"]
[BlackElo "792"]
[TimeControl "300"]
[EndTime "16:48:14 PDT"]
[Termination "1600x won by resignation"]

1. e4 {[%clk 0:04:52.5]} 1... d5 {[%clk 0:04:56.7]} 2. exd5 {[%clk 0:04:50.4]}
2... Qxd5 {[%clk 0:04:53.6]} 3. Nf3 {[%clk 0:04:48.2]} 3... Nf6 {[%clk
0:04:45.8]} 4. Be2 {[%clk 0:04:45.6]} 4... e5 {[%clk 0:04:42.7]} 5. Nc3 {[%clk
0:04:43.5]} 5... Qe6 {[%clk 0:04:37.4]} 6. Bb5+ {[%clk 0:04:42.1]} 6... Bd7
{[%clk 0:04:34.8]} 7. Bxd7+ {[%clk 0:04:40.6]} 7... Nbxd7 {[%clk 0:04:33.2]} 8.
O-O {[%clk 0:04:39.1]} 8... h6 {[%clk 0:04:30.9]} 9. d4 {[%clk 0:04:29]} 9...
Bd6 {[%clk 0:04:25.7]} 10. d5 {[%clk 0:04:27.7]} 10... Qf5 {[%clk 0:04:18.4]}
11. Nh4 {[%clk 0:04:26.9]} 11... Qh5 {[%clk 0:04:08.9]} 12. Qxh5 {[%clk
0:04:21.9]} 12... Nxh5 {[%clk 0:04:05.2]} 13. Nf5 {[%clk 0:04:20.1]} 13... O-O
{[%clk 0:03:58.4]} 14. Ne4 {[%clk 0:04:17.5]} 14... Nhf6 {[%clk 0:03:53.2]} 15.
Nfxd6 {[%clk 0:04:13.3]} 15... cxd6 {[%clk 0:03:51.8]} 16. Nxd6 {[%clk
0:03:59.5]} 16... Nxd5 {[%clk 0:03:43.6]} 17. Bd2 {[%clk 0:03:57.2]} 17... b6
{[%clk 0:03:39.4]} 18. Rad1 {[%clk 0:03:55]} 18... N5f6 {[%clk 0:03:35.6]} 19.
Rfe1 {[%clk 0:03:42.2]} 19... Rad8 {[%clk 0:03:13.7]} 20. c4 {[%clk 0:03:40.2]}
20... Nc5 {[%clk 0:03:11.5]} 21. Bc3 {[%clk 0:03:36.8]} 21... Nfe4 {[%clk
0:02:49.8]} 22. Bxe5 {[%clk 0:03:35.1]} 22... Nxd6 {[%clk 0:02:44]} 23. Bxd6
{[%clk 0:03:33.4]} 23... Ne6 {[%clk 0:02:40.5]} 24. Bxf8 {[%clk 0:03:31.4]}
24... Rxf8 {[%clk 0:02:40.3]} 25. Rd7 {[%clk 0:03:28.6]} 1-0

[Event "Live Chess"]
[Site "Chess.com"]
[Date "2023.05.21"]
[Round "-"]
[White "nigelst"]
[Black "EdenHazard8"]
[Result "0-1"]
[WhiteElo "1786"]
[BlackElo "1994"]
[TimeControl "300"]
[EndTime "16:48:15 PDT"]
[Termination "EdenHazard8 won by resignation"]

1. e4 {[%clk 0:04:59.2]} 1... c6 {[%clk 0:04:59.1]} 2. d4 {[%clk 0:04:57.4]}
2... d5 {[%clk 0:04:59]} 3. exd5 {[%clk 0:04:56]} 3... cxd5 {[%clk 0:04:58.9]}
4. Nf3 {[%clk 0:04:52.1]} 4... Nc6 {[%clk 0:04:57.3]} 5. Bd3 {[%clk 0:04:49.3]}
5... Bg4 {[%clk 0:04:56.3]} 6. c3 {[%clk 0:04:40.2]} 6... e6 {[%clk 0:04:55]} 7.
O-O {[%clk 0:04:38.9]} 7... Bd6 {[%clk 0:04:52.9]} 8. h3 {[%clk 0:04:35.5]} 8...
Bh5 {[%clk 0:04:51.7]} 9. Re1 {[%clk 0:04:31]} 9... Nf6 {[%clk 0:04:50]} 10. g4
{[%clk 0:04:29.7]} 10... Nxg4 {[%clk 0:04:47.7]} 11. hxg4 {[%clk 0:04:27.4]}
11... Bxg4 {[%clk 0:04:47.6]} 12. Be2 {[%clk 0:04:24.6]} 12... Qf6 {[%clk
0:04:44.6]} 13. Bg5 {[%clk 0:04:15.8]} 13... Qg6 {[%clk 0:04:42.6]} 14. Qd2
{[%clk 0:04:13.8]} 14... Bxf3 {[%clk 0:04:40.5]} 15. Bxf3 {[%clk 0:04:10.4]}
15... h6 {[%clk 0:04:39.7]} 16. Bxd5 {[%clk 0:04:00.6]} 16... Qxg5+ {[%clk
0:04:37.4]} 17. Qxg5 {[%clk 0:03:58.7]} 17... hxg5 {[%clk 0:04:37.3]} 18. Bg2
{[%clk 0:03:42]} 18... O-O-O {[%clk 0:04:16.6]} 19. Nd2 {[%clk 0:03:32.6]} 19...
Rh4 {[%clk 0:04:06.4]} 20. Ne4 {[%clk 0:03:25.7]} 20... Bf4 {[%clk 0:04:04]} 21.
Rad1 {[%clk 0:03:13.9]} 21... Ne7 {[%clk 0:03:53.6]} 22. Nc5 {[%clk 0:03:04.6]}
22... Nd5 {[%clk 0:03:45.3]} 23. c4 {[%clk 0:03:00.2]} 23... b6 {[%clk
0:03:43.6]} 24. cxd5 {[%clk 0:02:57.9]} 24... bxc5 {[%clk 0:03:42.1]} 25. dxe6
{[%clk 0:02:57.1]} 25... fxe6 {[%clk 0:03:38.4]} 26. Rxe6 {[%clk 0:02:46.4]}
26... Rxd4 {[%clk 0:03:36.2]} 27. Rxd4 {[%clk 0:02:43.1]} 27... cxd4 {[%clk
0:03:34]} 28. Rc6+ {[%clk 0:02:25.2]} 28... Kd7 {[%clk 0:03:31.1]} 29. Ra6
{[%clk 0:02:16.3]} 29... d3 {[%clk 0:03:25.7]} 30. Rxa7+ {[%clk 0:02:10.6]}
30... Bc7 {[%clk 0:03:16.9]} 31. Ra3 {[%clk 0:02:07]} 31... Rd4 {[%clk
0:03:08.9]} 32. Bh3+ {[%clk 0:02:00.1]} 32... g4 {[%clk 0:03:06.3]} 33. Bf1
{[%clk 0:01:50.2]} 33... d2 {[%clk 0:03:04.1]} 34. Be2 {[%clk 0:01:49.4]} 34...
d1=Q+ {[%clk 0:03:01.5]} 35. Bxd1 {[%clk 0:01:48.5]} 35... Rxd1+ {[%clk
0:03:01.4]} 36. Kg2 {[%clk 0:01:47.7]} 36... Rd2 {[%clk 0:02:59.1]} 37. b3
{[%clk 0:01:29.9]} 37... g3 {[%clk 0:02:57.4]} 38. Ra4 {[%clk 0:01:19.7]} 38...
Rxf2+ {[%clk 0:02:55]} 39. Kg1 {[%clk 0:01:05.5]} 39... Bb6 {[%clk 0:02:48.1]}
40. Kh1 {[%clk 0:01:03.7]} 40... g2+ {[%clk 0:02:46.1]} 41. Kh2 {[%clk
0:01:02.2]} 41... Rxa2 {[%clk 0:02:41.2]} 42. Rxa2 {[%clk 0:00:51.7]} 42...
g1=Q+ {[%clk 0:02:39.7]} 0-1

[Event "Live Chess"]
[Site "Chess.com"]
[Date "2023.05.21"]
[Round "-"]
[White "fso"]
[Black "grillage"]
[Result "1-0"]
[WhiteElo "2225"]
[BlackElo "1836"]
[TimeControl "300"]
[EndTime "16:48:21 PDT"]
[Termination "fso won by checkmate"]

1. d4 {[%clk 0:04:54.5]} 1... Nf6 {[%clk 0:04:57.5]} 2. c4 {[%clk 0:04:53.3]}
2... e6 {[%clk 0:04:56.6]} 3. Nc3 {[%clk 0:04:51.1]} 3... Bb4 {[%clk 0:04:54.5]}
4. Nf3 {[%clk 0:04:49.3]} 4... c5 {[%clk 0:04:43.9]} 5. e3 {[%clk 0:04:47.1]}
5... O-O {[%clk 0:04:35.6]} 6. Bd3 {[%clk 0:04:45.4]} 6... d6 {[%clk 0:04:33]}
7. O-O {[%clk 0:04:42.1]} 7... Bxc3 {[%clk 0:04:32.2]} 8. bxc3 {[%clk
0:04:40.7]} 8... Nc6 {[%clk 0:04:26.9]} 9. Qc2 {[%clk 0:04:33.2]} 9... e5 {[%clk
0:04:24.7]} 10. Rb1 {[%clk 0:04:23.1]} 10... b6 {[%clk 0:04:20.5]} 11. h3 {[%clk
0:04:14.7]} 11... Re8 {[%clk 0:04:12.9]} 12. e4 {[%clk 0:04:10.8]} 12... Ba6
{[%clk 0:04:05.2]} 13. Bg5 {[%clk 0:04:05.1]} 13... h6 {[%clk 0:03:53.4]} 14.
Bh4 {[%clk 0:04:02.8]} 14... g5 {[%clk 0:03:48.8]} 15. Bg3 {[%clk 0:04:01.6]}
15... Nh5 {[%clk 0:03:46.6]} 16. Bh2 {[%clk 0:03:57.4]} 16... Nf4 {[%clk
0:03:45.1]} 17. Bxf4 {[%clk 0:03:55.7]} 17... gxf4 {[%clk 0:03:41.3]} 18. a4
{[%clk 0:03:37.6]} 18... Kh8 {[%clk 0:03:37.4]} 19. d5 {[%clk 0:03:35.1]} 19...
Ne7 {[%clk 0:03:32]} 20. a5 {[%clk 0:03:33.4]} 20... Rg8 {[%clk 0:03:22.8]} 21.
Kh2 {[%clk 0:03:22.5]} 21... Ng6 {[%clk 0:03:08.1]} 22. Qa4 {[%clk 0:03:11.4]}
22... Rb8 {[%clk 0:02:37.9]} 23. axb6 {[%clk 0:03:05.9]} 23... Rxb6 {[%clk
0:02:36.8]} 24. Rxb6 {[%clk 0:03:00.4]} 24... Qxb6 {[%clk 0:02:35.9]} 25. Rb1
{[%clk 0:02:59.4]} 25... Qd8 {[%clk 0:02:15.3]} 26. Qxa6 {[%clk 0:02:55.3]}
26... Nh4 {[%clk 0:02:14.8]} 27. Nxh4 {[%clk 0:02:48.1]} 27... Qxh4 {[%clk
0:02:13.2]} 28. Qxd6 {[%clk 0:02:37.8]} 28... Qxf2 {[%clk 0:02:07]} 29. Qxh6#
{[%clk 0:02:35.6]} 1-0

[Event "Live Chess"]
[Site "Chess.com"]
[Date "2023.05.21"]
[Round "-"]
[White "LodeshChess"]
[Black "educatedlad"]
[Result "0-1"]
[WhiteElo "1136"]
[BlackElo "1616"]
[TimeControl "300"]
[EndTime "16:48:34 PDT"]
[Termination "educatedlad won on time"]

1. e4 {[%clk 0:04:58.8]} 1... e6 {[%clk 0:04:59]} 2. d4 {[%clk 0:04:56.3]} 2...
d5 {[%clk 0:04:58.9]} 3. e5 {[%clk 0:04:55.9]} 3... c6 {[%clk 0:04:57.4]} 4. c3
{[%clk 0:04:55.6]} 4... c5 {[%clk 0:04:56.2]} 5. Nf3 {[%clk 0:04:54]} 5... Nc6
{[%clk 0:04:55.7]} 6. Bd3 {[%clk 0:04:52.2]} 6... cxd4 {[%clk 0:04:53.9]} 7.
cxd4 {[%clk 0:04:50.7]} 7... Qb6 {[%clk 0:04:52.1]} 8. O-O {[%clk 0:04:45.9]}
8... Bd7 {[%clk 0:04:50.6]} 9. a3 {[%clk 0:04:41.1]} 9... Nxd4 {[%clk
0:04:49.3]} 10. Nxd4 {[%clk 0:04:34]} 10... Qxd4 {[%clk 0:04:48.2]} 11. Be3
{[%clk 0:04:27.4]} 11... Qxe5 {[%clk 0:04:46.8]} 12. Re1 {[%clk 0:04:25.7]}
12... Bd6 {[%clk 0:04:36.6]} 13. g3 {[%clk 0:04:24.9]} 13... Qxb2 {[%clk
0:04:34.2]} 14. Nd2 {[%clk 0:04:17.9]} 14... Nf6 {[%clk 0:04:27.3]} 15. a4
{[%clk 0:03:57.1]} 15... O-O {[%clk 0:04:24.9]} 16. Rb1 {[%clk 0:03:56.1]} 16...
Qc3 {[%clk 0:04:20.3]} 17. Nf3 {[%clk 0:03:45.3]} 17... e5 {[%clk 0:04:13.4]}
18. Bg5 {[%clk 0:03:34]} 18... e4 {[%clk 0:04:08.5]} 19. Bxf6 {[%clk 0:02:50.7]}
19... gxf6 {[%clk 0:03:59.7]} 20. Rxb7 {[%clk 0:02:38.9]} 20... Bg4 {[%clk
0:03:55.3]} 21. Rb3 {[%clk 0:02:21.6]} 21... Qa5 {[%clk 0:03:30.1]} 22. Rb5
{[%clk 0:02:18.5]} 22... Qc3 {[%clk 0:03:28]} 23. Rb3 {[%clk 0:02:14.6]} 23...
Qc7 {[%clk 0:03:22.9]} 24. Be2 {[%clk 0:01:25.2]} 24... exf3 {[%clk 0:03:20.4]}
25. Bxf3 {[%clk 0:01:24.6]} 25... Bxf3 {[%clk 0:03:19.1]} 26. Qxf3 {[%clk
0:01:24.2]} 26... Kh8 {[%clk 0:03:13.8]} 27. Qxd5 {[%clk 0:01:12.9]} 27... Rg8
{[%clk 0:03:04.1]} 28. Re4 {[%clk 0:00:53.1]} 28... Bf8 {[%clk 0:02:56.2]} 29.
Rh4 {[%clk 0:00:25.1]} 29... Qc1+ {[%clk 0:02:53.9]} 30. Kg2 {[%clk 0:00:23.8]}
30... Re8 {[%clk 0:02:45.2]} 31. Qxf7 {[%clk 0:00:11.1]} 31... Bg7 {[%clk
0:02:33.8]} 32. Qh5 {[%clk 0:00:08]} 32... h6 {[%clk 0:02:31.5]} 33. Qg6 {[%clk
0:00:04.3]} 33... Qg5 {[%clk 0:02:29.4]} 34. Qxg5 {[%clk 0:00:02]} 34... fxg5
{[%clk 0:02:28.5]} 35. Rb7 {[%clk 0:00:01.8]} 35... gxh4 {[%clk 0:02:26.8]} 36.
gxh4 {[%clk 0:00:00.9]} 36... Be5+ {[%clk 0:02:25.4]} 37. Kh3 {[%clk 0:00:00.7]}
37... Bd6 {[%clk 0:02:22.3]} 0-1

[Event "Live Chess"]
[Site "Chess.com"]
[Date "2023.05.21"]
[Round "-"]
[White "Tushinskiy"]
[Black "SupremeTactician"]
[Result "0-1"]
[WhiteElo "2169"]
[BlackElo "2342"]
[TimeControl "300"]
[EndTime "16:48:40 PDT"]
[Termination "SupremeTactician won on time"]

1. d4 {[%clk 0:04:58.1]} 1... Nf6 {[%clk 0:04:54.7]} 2. c3 {[%clk 0:04:58]} 2...
e6 {[%clk 0:04:53.8]} 3. Nf3 {[%clk 0:04:56.9]} 3... c5 {[%clk 0:04:53]} 4. Bg5
{[%clk 0:04:55.8]} 4... cxd4 {[%clk 0:04:52.2]} 5. cxd4 {[%clk 0:04:55.7]} 5...
Be7 {[%clk 0:04:51.6]} 6. e3 {[%clk 0:04:55.1]} 6... Nc6 {[%clk 0:04:50.6]} 7.
Nbd2 {[%clk 0:04:54.4]} 7... d5 {[%clk 0:04:50.3]} 8. a3 {[%clk 0:04:53.4]} 8...
h6 {[%clk 0:04:50.1]} 9. Bh4 {[%clk 0:04:52.4]} 9... Bd7 {[%clk 0:04:49.1]} 10.
Bd3 {[%clk 0:04:51.4]} 10... Rc8 {[%clk 0:04:48.3]} 11. O-O {[%clk 0:04:50.5]}
11... O-O {[%clk 0:04:47.5]} 12. b4 {[%clk 0:04:49.6]} 12... Ne8 {[%clk
0:04:46.8]} 13. Bg3 {[%clk 0:04:48.5]} 13... Bd6 {[%clk 0:04:45.3]} 14. Qb3
{[%clk 0:04:47.7]} 14... Bxg3 {[%clk 0:04:44.3]} 15. hxg3 {[%clk 0:04:47.6]}
15... Nd6 {[%clk 0:04:43.7]} 16. Rac1 {[%clk 0:04:46.9]} 16... Ne7 {[%clk
0:04:42.9]} 17. Ne5 {[%clk 0:04:42.1]} 17... Be8 {[%clk 0:04:40.4]} 18. Rc2
{[%clk 0:04:32.1]} 18... f6 {[%clk 0:04:37.8]} 19. Nef3 {[%clk 0:04:28.9]} 19...
Rxc2 {[%clk 0:04:35.1]} 20. Bxc2 {[%clk 0:04:27.5]} 20... b5 {[%clk 0:04:26.8]}
21. e4 {[%clk 0:04:23.5]} 21... Nc4 {[%clk 0:04:24.2]} 22. Re1 {[%clk 0:04:14]}
22... Nc6 {[%clk 0:04:18.4]} 23. exd5 {[%clk 0:04:10.4]} 23... exd5 {[%clk
0:04:17.9]} 24. Qd3 {[%clk 0:04:02.8]} 24... f5 {[%clk 0:04:11.7]} 25. Ne5
{[%clk 0:03:54.9]} 25... N6xe5 {[%clk 0:04:03.7]} 26. dxe5 {[%clk 0:03:52.9]}
26... Bc6 {[%clk 0:04:00.5]} 27. Nf3 {[%clk 0:03:50.5]} 27... g6 {[%clk
0:03:53.4]} 28. Nd4 {[%clk 0:03:48.9]} 28... Be8 {[%clk 0:03:50.5]} 29. f4
{[%clk 0:03:46]} 29... Qb6 {[%clk 0:03:47]} 30. Kh2 {[%clk 0:03:44.8]} 30... Rf7
{[%clk 0:03:40.5]} 31. Nf3 {[%clk 0:03:34.8]} 31... Rh7 {[%clk 0:03:38]} 32.
Qxd5+ {[%clk 0:03:30.4]} 32... Kh8 {[%clk 0:03:32.7]} 33. Bb3 {[%clk 0:03:18]}
33... Rd7 {[%clk 0:03:24.5]} 34. Qc5 {[%clk 0:03:16.6]} 34... Qxc5 {[%clk
0:03:22.3]} 35. bxc5 {[%clk 0:03:16.5]} 35... Nxa3 {[%clk 0:03:20.5]} 36. Rc1
{[%clk 0:02:51.1]} 36... a5 {[%clk 0:02:53.9]} 37. c6 {[%clk 0:02:47.1]} 37...
Rc7 {[%clk 0:02:52.6]} 38. Bd5 {[%clk 0:02:46.1]} 38... Nc4 {[%clk 0:02:48]} 39.
Nd4 {[%clk 0:02:40.4]} 39... Ne3 {[%clk 0:02:16.6]} 40. Bf3 {[%clk 0:02:27.4]}
40... Ng4+ {[%clk 0:02:15.8]} 41. Bxg4 {[%clk 0:02:21]} 41... fxg4 {[%clk
0:02:14.8]} 42. Rc5 {[%clk 0:02:19.5]} 42... b4 {[%clk 0:02:12.7]} 43. Rxa5
{[%clk 0:02:17.9]} 43... Bxc6 {[%clk 0:01:56.7]} 44. Rc5 {[%clk 0:02:14]} 44...
b3 {[%clk 0:01:55.6]} 45. Nxc6 {[%clk 0:02:03.7]} 45... b2 {[%clk 0:01:52.4]}
46. Rb5 {[%clk 0:02:01.6]} 46... Rxc6 {[%clk 0:01:51]} 47. Rxb2 {[%clk
0:02:01.1]} 47... Kg7 {[%clk 0:01:47.4]} 48. Rb7+ {[%clk 0:01:57.9]} 48... Kf8
{[%clk 0:01:46.4]} 49. Rh7 {[%clk 0:01:56.3]} 49... h5 {[%clk 0:01:45]} 50. Ra7
{[%clk 0:01:52.3]} 50... Rc1 {[%clk 0:01:41.5]} 51. Ra6 {[%clk 0:01:48.6]} 51...
Kf7 {[%clk 0:01:40.6]} 52. Rf6+ {[%clk 0:01:47.3]} 52... Kg7 {[%clk 0:01:39.9]}
53. Ra6 {[%clk 0:01:41.9]} 53... Kf7 {[%clk 0:01:37.8]} 54. Ra7+ {[%clk
0:01:37.2]} 54... Kf8 {[%clk 0:01:35.2]} 55. Rb7 {[%clk 0:01:22.4]} 55... Re1
{[%clk 0:01:33.4]} 56. Rd7 {[%clk 0:01:18.9]} 56... Rc1 {[%clk 0:01:31.5]} 57.
e6 {[%clk 0:01:09.8]} 57... Re1 {[%clk 0:01:28.2]} 58. Rf7+ {[%clk 0:01:08.4]}
58... Kg8 {[%clk 0:01:27]} 59. f5 {[%clk 0:01:01.8]} 59... gxf5 {[%clk
0:01:18.6]} 60. Rxf5 {[%clk 0:01:01.7]} 60... Rxe6 {[%clk 0:01:17.1]} 61. Rxh5
{[%clk 0:01:00.9]} 61... Re4 {[%clk 0:01:16.8]} 62. Kg1 {[%clk 0:00:58.5]} 62...
Kf7 {[%clk 0:01:10]} 63. Rf5+ {[%clk 0:00:56.4]} 63... Ke6 {[%clk 0:00:52.4]}
64. Rf4 {[%clk 0:00:53.6]} 64... Ke5 {[%clk 0:00:47.9]} 65. Rf8 {[%clk 0:00:45]}
65... Rb4 {[%clk 0:00:40.5]} 66. Kf2 {[%clk 0:00:31.8]} 66... Rb2+ {[%clk
0:00:39.7]} 67. Kg1 {[%clk 0:00:30.8]} 67... Rb1+ {[%clk 0:00:38.9]} 68. Kh2
{[%clk 0:00:29.8]} 68... Rb4 {[%clk 0:00:35.3]} 69. Rf2 {[%clk 0:00:27.4]} 69...
Rb1 {[%clk 0:00:31.7]} 70. Rf4 {[%clk 0:00:25.7]} 70... Rb6 {[%clk 0:00:29.6]}
71. Rxg4 {[%clk 0:00:24.5]} 71... Rh6+ {[%clk 0:00:29.4]} 72. Rh4 {[%clk
0:00:23.9]} 72... Rc6 {[%clk 0:00:29.3]} 73. g4 {[%clk 0:00:22.7]} 73... Kf4
{[%clk 0:00:28.6]} 74. g3+ {[%clk 0:00:21.3]} 74... Kg5 {[%clk 0:00:28.1]} 75.
Kh3 {[%clk 0:00:19.8]} 75... Rc1 {[%clk 0:00:27]} 76. Rh5+ {[%clk 0:00:19.2]}
76... Kg6 {[%clk 0:00:26.6]} 77. Rf5 {[%clk 0:00:18.7]} 77... Rg1 {[%clk
0:00:24.5]} 78. Ra5 {[%clk 0:00:16.9]} 78... Kf6 {[%clk 0:00:22.6]} 79. g5+
{[%clk 0:00:15.9]} 79... Kg6 {[%clk 0:00:22.1]} 80. Kg4 {[%clk 0:00:15.8]} 80...
Rc1 {[%clk 0:00:19.1]} 81. Ra6+ {[%clk 0:00:15.7]} 81... Kg7 {[%clk 0:00:18.6]}
82. Kh5 {[%clk 0:00:07.8]} 82... Rh1+ {[%clk 0:00:17.8]} 83. Kg4 {[%clk
0:00:07.1]} 83... Rb1 {[%clk 0:00:17.6]} 84. g6 {[%clk 0:00:06.2]} 84... Rb5
{[%clk 0:00:16.4]} 85. Kh4 {[%clk 0:00:04.9]} 85... Rb4+ {[%clk 0:00:16]} 86. g4
{[%clk 0:00:04.3]} 86... Rb5 {[%clk 0:00:15.9]} 87. g5 {[%clk 0:00:03.1]} 87...
Rb2 {[%clk 0:00:15.8]} 88. Ra3 {[%clk 0:00:01.1]} 88... Kxg6 {[%clk 0:00:14.8]}
89. Ra7 {[%clk 0:00:00.5]} 89... Kf5 {[%clk 0:00:14.1]} 90. Kg3 {[%clk
0:00:00.3]} 90... Rb3+ {[%clk 0:00:13.3]} 0-1

[Event "Live Chess"]
[Site "Chess.com"]
[Date "2023.05.21"]
[Round "-"]
[White "smoggyrabbit"]
[Black "LiamClery2020"]
[Result "1-0"]
[WhiteElo "1753"]
[BlackElo "2043"]
[TimeControl "300"]
[EndTime "16:48:50 PDT"]
[Termination "smoggyrabbit won by resignation"]

1. d4 {[%clk 0:04:59.4]} 1... Nf6 {[%clk 0:04:59.3]} 2. Nf3 {[%clk 0:04:58.4]}
2... d5 {[%clk 0:04:57.9]} 3. e3 {[%clk 0:04:57.7]} 3... e6 {[%clk 0:04:56.7]}
4. Bd3 {[%clk 0:04:56.8]} 4... Be7 {[%clk 0:04:56.6]} 5. O-O {[%clk 0:04:55.8]}
5... O-O {[%clk 0:04:56.5]} 6. b3 {[%clk 0:04:54.7]} 6... c5 {[%clk 0:04:56.4]}
7. Bb2 {[%clk 0:04:53.6]} 7... Nc6 {[%clk 0:04:56.3]} 8. Nbd2 {[%clk 0:04:52.2]}
8... cxd4 {[%clk 0:04:55.7]} 9. exd4 {[%clk 0:04:51.2]} 9... Bd6 {[%clk
0:04:55.6]} 10. Ne5 {[%clk 0:04:50.2]} 10... Qc7 {[%clk 0:04:54.5]} 11. f4
{[%clk 0:04:49.3]} 11... Qb6 {[%clk 0:04:49.3]} 12. Ndf3 {[%clk 0:04:46.1]}
12... Bd7 {[%clk 0:04:43.6]} 13. Kh1 {[%clk 0:04:41.4]} 13... Rac8 {[%clk
0:04:42.1]} 14. Nxd7 {[%clk 0:04:36.1]} 14... Nxd7 {[%clk 0:04:42]} 15. c4
{[%clk 0:04:22.2]} 15... Nb4 {[%clk 0:04:39]} 16. c5 {[%clk 0:04:11.6]} 16...
Bxc5 {[%clk 0:04:37.4]} 17. dxc5 {[%clk 0:04:05.8]} 17... Nxc5 {[%clk
0:04:37.3]} 18. Bxh7+ {[%clk 0:04:03]} 18... Kxh7 {[%clk 0:04:36.2]} 19. Ng5+
{[%clk 0:04:02]} 19... Kg8 {[%clk 0:04:35.5]} 20. Qh5 {[%clk 0:04:00.3]} 1-0

[Event "Live Chess"]
[Site "Chess.com"]
[Date "2023.05.21"]
[Round "-"]
[White "Biranidun"]
[Black "NAZRIZ1977"]
[Result "1-0"]
[WhiteElo "2655"]
[BlackElo "2050"]
[TimeControl "300"]
[EndTime "16:48:54 PDT"]
[Termination "Biranidun won by resignation"]

1. e4 {[%clk 0:04:59.6]} 1... c5 {[%clk 0:04:56.6]} 2. Nf3 {[%clk 0:04:58.8]}
2... d6 {[%clk 0:04:53.1]} 3. d4 {[%clk 0:04:58.4]} 3... cxd4 {[%clk 0:04:52.4]}
4. Nxd4 {[%clk 0:04:58.3]} 4... Nf6 {[%clk 0:04:51.7]} 5. Nc3 {[%clk 0:04:57.8]}
5... g6 {[%clk 0:04:51]} 6. Be3 {[%clk 0:04:57.3]} 6... Bg7 {[%clk 0:04:50.3]}
7. f3 {[%clk 0:04:57]} 7... O-O {[%clk 0:04:49.5]} 8. Qd2 {[%clk 0:04:56.6]}
8... Nc6 {[%clk 0:04:48.9]} 9. Bc4 {[%clk 0:04:53.3]} 9... Bd7 {[%clk 0:04:48]}
10. O-O-O {[%clk 0:04:52.7]} 10... Rc8 {[%clk 0:04:47.4]} 11. Bb3 {[%clk
0:04:52.3]} 11... Nxd4 {[%clk 0:04:46.7]} 12. Bxd4 {[%clk 0:04:52.2]} 12... b5
{[%clk 0:04:46]} 13. Nd5 {[%clk 0:04:51.9]} 13... Nxd5 {[%clk 0:04:44.9]} 14.
Bxg7 {[%clk 0:04:51.8]} 14... Kxg7 {[%clk 0:04:44.3]} 15. exd5 {[%clk
0:04:51.7]} 15... a5 {[%clk 0:04:40.1]} 16. a3 {[%clk 0:04:50.5]} 16... Bf5
{[%clk 0:04:24.7]} 17. g4 {[%clk 0:04:49.2]} 17... a4 {[%clk 0:03:16.5]} 18.
Bxa4 {[%clk 0:04:47.8]} 18... bxa4 {[%clk 0:03:14]} 19. gxf5 {[%clk 0:04:46.8]}
19... Qc7 {[%clk 0:03:04.8]} 20. Qd4+ {[%clk 0:04:41.4]} 20... Kg8 {[%clk
0:03:02.1]} 21. Rd2 {[%clk 0:04:40.6]} 21... Rb8 {[%clk 0:02:58.7]} 22. Qxa4
{[%clk 0:04:32.8]} 22... Qb6 {[%clk 0:02:55.8]} 23. Qd4 {[%clk 0:04:31.8]} 23...
Qb5 {[%clk 0:02:51.7]} 24. Re1 {[%clk 0:04:27.7]} 24... Rfc8 {[%clk 0:02:48.2]}
25. fxg6 {[%clk 0:04:21.7]} 25... hxg6 {[%clk 0:02:45.2]} 26. Rxe7 {[%clk
0:04:05.9]} 26... Rc4 {[%clk 0:02:25.7]} 27. Qf6 {[%clk 0:04:04.3]} 27... Rf4
{[%clk 0:01:50.6]} 28. Qxf4 {[%clk 0:03:54]} 28... Qxb2+ {[%clk 0:01:48.7]} 29.
Kd1 {[%clk 0:03:53.4]} 29... Qb1+ {[%clk 0:01:46.7]} 30. Ke2 {[%clk 0:03:53]}
30... Qb5+ {[%clk 0:01:37.4]} 31. c4 {[%clk 0:03:52]} 1-0